Cogmind - Beta 17.1 @@@ ROGUE MODE // 2026.08.25 @ 09:05:56 Player: Six of Ten Result: Destroyed by G-34 Mercenary with Small Laser Performance ------------- Evolutions (0) 0 Regions Visited (4) 800 Robots Destroyed (23) 115 Value Destroyed (519) 519 Prototype IDs (0) 0 Alien Tech Used (0) 0 Bonus (0) 0 TOTAL SCORE: 1434 Bonus ------- None Cogmind --------- Core Integrity 0/250 Matter 285/300 Energy 125/125 System Corruption 0% Temperature Cool (12) Movement Treading (160) Location -9/Mines Parts ------- > --- POWER (1) -------- Light Ion Engine > --- PROPULSION (2) --- Light Treads Wheel > --- UTILITY (2) ------ Improved Heat Sink Small Storage Unit > --- WEAPON (2) ------- Light Assault Rifle > --- INVENTORY (8) ---- Wheel Wheel Hacking Suite Grenade Launcher Rocket Launcher Datajack Mining Claw Peak State ------------ > --- POWER ------------ Ion Engine > --- PROPULSION ------- Aluminum Leg Aluminum Leg > --- UTILITY ---------- Improved Heat Sink Small Storage Unit > --- WEAPON ----------- Medium Laser Small Laser > --- INVENTORY -------- Light Treads Wheel Wheel Hacking Suite Grenade Launcher Rocket Launcher Datajack Mining Claw [Rating: 10] Favorites ----------- Power Light Ion Engine Engine Light Ion Engine Propulsion Aluminum Leg Treads Light Treads Leg Aluminum Leg Wheel Wheel Utility Small Storage Unit Device Improved Heat Sink Storage Small Storage Unit Weapon Small Laser Energy Gun Small Laser Ballistic Gun Light Assault Rifle Launcher Grenade Launcher Build | -11 -10 -10 -10 -9 ------- Run | Yrd Mat Min Exi Min Slots Evolved . | . . . . . Power . | . . . . . Propulsion . | . . . . . Utility . | . . . . . Weapon . | . . . . . Parts Attached 19 | 7 3 9 . . Power 4 | 1 2 1 . . Engine 4 | 1 2 1 . . Core . | . . . . . Reactor . | . . . . . Propulsion 5 | 2 . 3 . . Treads 2 | 2 . . . . Leg 2 | . . 2 . . Wheel 1 | . . 1 . . Hover . | . . . . . Flight . | . . . . . Utility 4 | 2 . 2 . . Device 3 | 1 . 2 . . Storage 1 | 1 . . . . Processor . | . . . . . Hackware . | . . . . . Protection . | . . . . . Artifact . | . . . . . Weapon 6 | 2 1 3 . . Energy Gun 4 | 2 1 1 . . Energy Cannon . | . . . . . Ballistic Gun 1 | . . 1 . . Ballistic Cannon . | . . . . . Launcher 1 | . . 1 . . Special Weapon . | . . . . . Impact Weapon . | . . . . . Slashing Weapon . | . . . . . Piercing Weapon . | . . . . . Special Melee Weapon . | . . . . . Unidentified Prototypes . | . . . . . Parts Lost 5 | . . 3 . 2 Power 1 | . . 1 . . Propulsion 2 | . . 1 . 1 Utility . | . . . . . Weapon 2 | . . 1 . 1 Highest Loss Streak 3 | . . 3 . 2 To Critical Strikes . | . . . . . Average Backups 7 | 3 7 7 8 7 Power . | . . . . . Propulsion 3 | 1 4 3 3 2 Utility . | . . 1 1 1 Weapon 2 | . 1 2 3 3 Tool/Special . | . . . . . Unused Backups 6 | . . . . 6 Power . | . . . . . Propulsion 2 | . . . . 2 Utility 1 | . . . . 1 Weapon 2 | . . . . 2 Tool/Special 1 | . . . . 1 Average Slot Usage (%) 99 | . 100 98 100 92 Engine 13 | . 14 13 14 14 Treads 9 | . 28 2 . 7 Leg 11 | . . 22 14 7 Wheel 6 | . . 2 14 14 Device 14 | . 14 14 14 14 Storage 14 | . 14 14 14 14 Energy Gun 21 | . 28 25 14 7 Ballistic Gun 6 | . . 2 14 14 Peak Build Rating 10 | 7 8 10 10 10 Average Rating 8 | 5 7 8 10 8 On Entrance 7 | . 7 8 10 10 Avg Prop Armor Cover (%) 9 | . . 9 9 . Naked Turns . | . . . . . Heaviest Build 14 | 13 13 14 12 . Greatest Support 40 | 40 40 40 10 . Greatest Overweight (x) 3 | 3 . 1 1 . Average Overweight (x) . | . . . 1 . Largest Inventory Capacity 8 | 8 8 8 8 8 Average Capacity 7 | 7 8 8 8 8 Most Carried 8 | 6 8 8 8 8 Average Carried 7 | 3 7 7 8 7 Final Capacity 8 | 8 8 8 8 8 Final Carried 8 | 6 8 8 8 7 Class Distribution -------------------- 56% | Mutant 43% | Scavenger-Mutant Dominant Class ---------------- Mutant | -10/Materials Mutant | -10/Mines Scavenger-Mutant | -10/Exiles Scavenger-Mutant | -9/Mines Resources | -11 -10 -10 -10 -9 ----------- Run | Yrd Mat Min Exi Min Matter Collected 400 | 204 96 100 . . Remotely . | . . . . . Salvage Created 709 | 10 415 284 . . Parts 45 | 4 29 12 . . Haulers Intercepted . | . . . . . Recyclers Shooed . | . . . . . Parts Field Recycled . | . . . . . Retrieved Matter . | . . . . . Parts Self-Destructed . | . . . . . Prevented . | . . . . . Parts Restored . | . . . . . Kills | -11 -10 -10 -10 -9 ------- Run | Yrd Mat Min Exi Min Combat Hostiles Destroyed 20 | . 13 7 . . Guns 18 | . 13 5 . . AOE 2 | . . 2 . . Classes Destroyed 5 | 1 3 1 . . Tunneler 1 | 1 . . . . Recycler 1 | . . 1 . . Operator 1 | . 1 . . . Swarmer 9 | . 6 3 . . Grunt 11 | . 7 4 . . Best Kill Streak 6 | 1 6 4 . . Combat Bots Only 6 | . 6 3 . . Max Kills in Single Turn 3 | 1 1 3 . . Gunslinging . | . . . . . Exploded 2 | . . 2 . . Melee . | . . . . . Uniques/NPCs Destroyed . | . . . . . Combat | -11 -10 -10 -10 -9 -------- Run | Yrd Mat Min Exi Min Hostile Shots Fired 157 | . 71 68 . 18 Missed 38 | . 14 20 . 4 Hits 119 | . 57 48 . 14 Projectile 119 | . 57 48 . 14 Critical Strikes 2 | . . 2 . . Damage Taken 1288 | . 534 588 . 166 Core 257 | . 87 132 . 38 Absorbed by Shields . | . . . . . Core Remaining (%) 100 | 100 . . . . Volleys Fired 83 | 3 42 32 . 6 Largest 2 | 2 2 2 . 2 Hottest 90 | 80 80 90 . 70 Shots Fired 151 | 6 84 54 . 7 Gun 150 | 6 84 53 . 7 Cannon . | . . . . . Launcher 1 | . . 1 . . Special . | . . . . . Kinetic 6 | . . . . 6 Thermal 144 | 6 84 53 . 1 Explosive 1 | . . 1 . . Electromagnetic . | . . . . . Robot Hit Streak 20 | 2 20 12 . 8 Robot Miss Streak 7 | 1 3 7 . . Penetration Max . | . . . . . Secondary Targets 2 | . 2 . . . Max Gunslinging Chain 1 | . 1 . . . Shots Hit Robots 98 | 4 53 34 . 7 Core Hits 42 | 1 22 16 . 3 Critical Kills . | . . . . . Critical Parts Destroyed . | . . . . . Critical Strikes 1 | . . 1 . . Burn 1 | . . 1 . . Melee Attacks . | . . . . . Impact . | . . . . . Slashing . | . . . . . Piercing . | . . . . . Sneak Attacks . | . . . . . Combat Hostiles . | . . . . . Follow-up Attacks . | . . . . . Damage Inflicted 1183 | 43 591 486 . 63 Guns 1099 | 43 591 402 . 63 Cannons . | . . . . . Explosions 84 | . . 84 . . Melee . | . . . . . Ramming . | . . . . . Kinetic 50 | . . . . 50 Thermal 1049 | 43 591 402 . 13 Explosive 84 | . . 84 . . Electromagnetic . | . . . . . Impact . | . . . . . Slashing . | . . . . . Piercing . | . . . . . Highest Corruption . | . . . . . Average Corruption . | . . . . . Corruption Purged . | . . . . . Corruption Blocked . | . . . . . Overload Shots . | . . . . . Overflow Damage . | . . . . . Projectiles . | . . . . . Explosions . | . . . . . Melee . | . . . . . Knockbacks . | . . . . . Impact . | . . . . . Kinetic . | . . . . . Secondary . | . . . . . Self-Inflicted Damage 23 | . . 23 . . Shots 1 | . . 1 . . Rammed . | . . . . . Targets Rammed . | . . . . . Kicked . | . . . . . Crushed . | . . . . . Highest Temperature 266 | 54 258 266 . 23 Average Temperature 95 | 29 82 143 . 7 Received Heat Transfer 561 | . 180 288 . 93 Effects 1 | . . 1 . . Interference 1 | . . 1 . . Siege Activations . | . . . . . Martial Activations . | . . . . . Shielding Activations . | . . . . . Robots Disrupted . | . . . . . Combat Hostiles . | . . . . . Robots Corrupted . | . . . . . Combat Hostiles . | . . . . . Parts Fried . | . . . . . Impact Corruptions . | . . . . . Robots Melted . | . . . . . Combat Hostiles . | . . . . . Parts Melted 5 | . 3 2 . . Heat Transferred 2591 | 100 1350 1104 . 37 Parts Sabotaged . | . . . . . Parts Stolen . | . . . . . Parts Stripped . | . . . . . Power Chain Reactions . | . . . . . Alert | -11 -10 -10 -10 -9 ------- Run | Yrd Mat Min Exi Min Maximum Alert Level . | . . . . . Low Security (%) 100 | 100 100 100 . 100 Level 1 . | . . . . . Level 2 . | . . . . . Level 3 . | . . . . . Level 4 . | . . . . . Level 5 . | . . . . . High Security . | . . . . . Max Security . | . . . . . Peak Influence 140 | 5 140 86 . . Initial 5 | . . 5 . . Average 33 | . 53 14 . . Influence Increases 536 | 5 349 182 . . Destroy 0b10 Robot/C 400 | . 260 140 . . Destroy 0b10 Robot/NC 15 | 5 5 5 . . Destroy Leader 80 | . 50 30 . . Successful Hack 34 | . 34 . . . Destroy Structure 7 | . . 7 . . Influence Decreases 536 | 5 335 158 38 . Entered New Map 47 | . . 9 38 . Time Decay 467 | 5 335 127 . . Lost Part 22 | . . 22 . . Squads Dispatched 3 | . 3 . . . Investigation 2 | . 2 . . . Extermination . | . . . . . Reinforcement 1 | . 1 . . . Assault . | . . . . . Garrison . | . . . . . Intercept . | . . . . . Searches Triggered . | . . . . . Construction Impeded . | . . . . . Haulers Reinforced . | . . . . . Active Scanning Responses . | . . . . . Cargo Convoy Interrupts . | . . . . . Stealth | -11 -10 -10 -10 -9 --------- Run | Yrd Mat Min Exi Min Distress Signals . | . . . . . Communications Jammed . | . . . . . Distress Signals . | . . . . . Times Spotted 28 | . 18 7 . 3 Peak Tracking Total 5 | . 5 3 . 3 Tactical Retreats . | . . . . . Traps | -11 -10 -10 -10 -9 ------- Run | Yrd Mat Min Exi Min Traps Triggered 1 | . 1 . . . Indirectly . | . . . . . Trap Hack Attempts . | . . . . . Triggered . | . . . . . Disarmed . | . . . . . Reprogrammed . | . . . . . Reused . | . . . . . Traps Extracted . | . . . . . Installed . | . . . . . Triggered . | . . . . . Machines | -11 -10 -10 -10 -9 ---------- Run | Yrd Mat Min Exi Min Machines Disabled . | . . . . . Max in Single Turn . | . . . . . Machines Repaired . | . . . . . Machines Dismantled . | . . . . . Machines Sabotaged . | . . . . . Overloaded Fab Kills . | . . . . . Hacking | -11 -10 -10 -10 -9 --------- Run | Yrd Mat Min Exi Min Machines Accessed 11 | . 7 . 4 . Terminals 7 | . 7 . . . Fabricators . | . . . . . Repair Stations . | . . . . . Recycling Units . | . . . . . Scanalyzers . | . . . . . Garrison Access . | . . . . . Total Hacks 21 | . 17 . 4 . Successful 13 | . 9 . 4 . Failed 8 | . 8 . . . Catastrophic 1 | . 1 . . . Database Lockouts . | . . . . . Manual 18 | . 16 . 2 . Terminals 17 | . 17 . . . Fabricators . | . . . . . Repair Stations . | . . . . . Recycling Units . | . . . . . Scanalyzers . | . . . . . Garrison Access . | . . . . . Terminal Hacks 6 | . 2 . 4 . Record 4 | . . . 4 . Branch Access Points 1 | . 1 . . . Terminal Index 1 | . 1 . . . Fabricator Hacks . | . . . . . Repair Station Hacks . | . . . . . Recycling Unit Hacks . | . . . . . Scanalyzer . | . . . . . Garrison Access Hacks . | . . . . . Unauthorized Hacks 7 | . 7 . . . Terminals 7 | . 7 . . . Botnet 7 | . 7 . . . Fabricators . | . . . . . Repair Stations . | . . . . . Recycling Units . | . . . . . Scanalyzers . | . . . . . Garrison Access . | . . . . . Data Cores Recovered . | . . . . . Used . | . . . . . Hacking Detections 7 | . 7 . . . Full Trace Events 1 | . 1 . . . Feedback Events . | . . . . . Feedback Blocked . | . . . . . Robot Schematics Acquired . | . . . . . Robots Built . | . . . . . Authchips . | . . . . . Time . | . . . . . Total Robot Build Rating . | . . . . . Part Schematics Acquired . | . . . . . Parts Built . | . . . . . Authchips . | . . . . . Time . | . . . . . Total Part Build Rating . | . . . . . Part Studies Acquired . | . . . . . Parts Repaired . | . . . . . Time . | . . . . . Parts Recycled . | . . . . . Recycled Matter . | . . . . . Retrieved Matter . | . . . . . Retrieved Components . | . . . . . Parts Scanalyzed . | . . . . . Part Schematics Acquired . | . . . . . Parts Damaged . | . . . . . Bothacking | -11 -10 -10 -10 -9 ------------ Run | Yrd Mat Min Exi Min Used RIF Installer . | . . . . . Robots Hacked . | . . . . . Non-combat . | . . . . . Combat . | . . . . . Robot Hacks Applied . | . . . . . Relay Couplers Released . | . . . . . Fabnet Peak Effective % . | . . . . . Robots Rewired . | . . . . . Allies Hacked . | . . . . . Hacks Repelled . | . . . . . Allies | -11 -10 -10 -10 -9 -------- Run | Yrd Mat Min Exi Min Total Allies . | . . . . . Largest Group . | . . . . . Highest-Rated Group . | . . . . . Highest-Rated Ally . | . . . . . Total Orders . | . . . . . Ally Attacks . | . . . . . Total Damage . | . . . . . Kills . | . . . . . Allies Corrupted . | . . . . . Allies Melted . | . . . . . Intel | -11 -10 -10 -10 -9 ------- Run | Yrd Mat Min Exi Min Active Infowar (turns) 1409 | 29 957 423 . . Seismic 1409 | 29 957 423 . . Robot Analysis Total . | . . . . . Derelict Logs Recovered 1 | . . 1 . . Drone Launches . | . . . . . Drone Recoveries . | . . . . . Exploration | -11 -10 -10 -10 -9 ------------- Run | Yrd Mat Min Exi Min Turns Passed 3014 | 131 957 752 1162 12 Spaces Moved 2101 | 68 331 482 1220 . Core 8 | 8 . . . . Treads 426 | 60 331 35 . . Legs 326 | . . 326 . . Wheels 1341 | . . 121 1220 . Hover . | . . . . . Flight . | . . . . . Fastest Speed 50 | 50 160 95 95 . Average Speed 112 | 153 160 117 95 . Slowest Speed 200 | 200 160 190 95 . Overloaded Moves . | . . . . . Propulsion Burnouts . | . . . . . Robots Hopped . | . . . . . Potential Cave-ins . | . . . . . Cave-ins Triggered . | . . . . . Exploration Rate (%) 48 | 4 63 80 93 2 Regions Visited 4 Branch Regions 3 Pre-discovered Areas . | . . . . . Known Exits Taken 1 | . 1 . . . Unknown Exits Taken 3 | 1 . 1 1 . Scrap Searched 1 | . . 1 . . Spaces Dug . | . . . . . Terrain Destroyed 7 | . . 7 . . Melee . | . . . . . Projectile . | . . . . . AOE 7 | . . 7 . . Terrain Rammed . | . . . . . Walls Destroyed . | . . . . . Machines Disabled . | . . . . . Actions | -11 -10 -10 -10 -9 --------- Run | Yrd Mat Min Exi Min Total 2598 | 85 675 609 1222 7 Wait 379 | 2 293 81 3 . Move 2097 | 67 330 481 1219 . Hop . | . . . . . Pick Up 13 | 6 4 3 . . Fast Attach 9 | 7 . 2 . . Attach 2 | . . 1 . 1 Detach . | . . . . . Swap 9 | . 3 6 . . Drop 6 | . 3 3 . . Fire 83 | 3 42 32 . 6 Melee . | . . . . . Ram . | . . . . . Kick . | . . . . . Crush . | . . . . . Escape Stasis . | . . . . . Rewire . | . . . . . Trap . | . . . . . Miscellaneous . | . . . . . Route ------- -11/Scrapyard -10/Materials (discovered 3 exits: [*Mat x2] / *Min) -10/Mines (discovered 2 exits: [*Mat] / *Exi) -10/Exiles (discovered 2 exits: [*Min x2]) -9/Mines History --------- Turn | Location | Event 65 | -11/Scrapyard | Discovered new exit (range 16) 132 | -11/Scrapyard | Entered Materials 304 | -10/Materials | Build established: Mutant 452 | -10/Materials | Discovered new exit (range 10) 908 | -10/Materials | Discovered new exit (range 14) 964 | -10/Materials | Identified exit to Mines 1089 | -10/Materials | Entered Mines 1146 | -10/Mines | Received a Rocket Launcher from a helpful Derelict 1294 | -10/Mines | Discovered new exit (range 14) 1479 | -10/Mines | Core integrity fell below 50% 1722 | -10/Mines | Core integrity fell below 20% 1734 | -10/Mines | Lost 3 parts (1p1n1w) 1760 | -10/Mines | Learned Materials stockpile data 1837 | -10/Mines | Deemed a non-threat by the Exiles lab entrance 1837 | -10/Mines | Discovered new exit (range 5) 1841 | -10/Mines | Entered Exiles 1841 | -10/Exiles | Found Exiles lab abandoned 1855 | -10/Exiles | Discovered new exit (range 15) 2015 | -10/Exiles | Build established: Scavenger-Mutant 2231 | -10/Exiles | Discovered new exit (range 14) 3003 | -10/Exiles | Entered Mines 3013 | -9/Mines | Met a Derelict bent on vengeance 3015 | -9/Mines | Destroyed by G-34 Mercenary with Small Laser Last Messages --------------- >>Record "DEC-BYE" For the record, I voted to stay and build some amazing defenses, but HEX said this is a lab, not a battlefield. Anyway, you're too late, MAIN.C, Warlord sends his regards. 02133_ Connecting with HEX's Terminal... >>Record "HEX-BYE" To anyone looking for us: Don't. 02142_ Connecting with EX-Vault Access... 02145_ Connecting with EX-Prototypes Database... 02231_ EXIT=FOUND 02301_ Connecting with BIN's Terminal... 02318_ Connecting with DEC's Terminal... 02591_ Connecting with EX-Message Board... 02698_ Connecting with EX-Vault Access... 02711_ Connecting with HEX's Terminal... LOCATION=UNKNOWN GOAL=ESCAPE 03004_ Aluminum Leg destroyed. 03004_ Med. Laser destroyed. 03009_ G-47 Trooper destroyed. Map ----- +----------------------------------------------------+ | | | | | | | | | | | | | | | | | ????????????????????????????? | | ????????????????????????????? | | ????????????????????????????? | | ????????????????????????????? | | ????????????????????????????? | | ????????????????????????????? | | ????????????????????????????? | | ????????????????????????????? | | ????????????????????????????? | | ???###??????????????????????? | | ???# $??????????????????????? | | ???# #??????????????????????? | | ???# #??????????????????????? | | ??## ##?????????????????????? | | ?## ##????????????????????? | | ?# g g ##???????????????????? | | ?# #???????????????????? | | ?# @% #???????????????????? | | ??# = ##???????????????????? | | ??## ##????????????????????? | | ???####?????????????????????? | | ????????????????????????????? | | ????????????????????????????? | | ????????????????????????????? | | ????????????????????????????? | | ????????????????????????????? | | ????????????????????????????? | | ????????????????????????????? | | ????????????????????????????? | | ????????????????????????????? | | ????????????????????????????? | | ????????????????????????????? | | ????????????????????????????? | | ????????????????????????????? | | ????????????????????????????? | | ????????????????????????????? | | ????????????????????????????? | | ????????????????????????????? | | ????????????????????????????? | | ????????????????????????????? | | ????????????????????????????? | | ????????????????????????????? | +----------------------------------------------------+ Best States ------------- Heat Dissipation 39 Energy Generation 10 Energy Capacity 250 Matter Stores 300 Matter Capacity 300 Sight Range 16 Terrain Scan Density 10 Evasion (%) 55 Recoil Reduction 2 Item Schematics ----------------- None Robot Schematics ------------------ None Fabricated ------------ Nothing Repaired ---------- Nothing Studied --------- None Alien Tech Used ----------------- None Achievements -------------- None Challenges ------------ None Game ------ Seed ArcSpreadHumpback Manual? 0 Play Time 00:23:03 Cumulative 56.5 hours Start 2026.08.25 @ 06:35:06 End 2026.08.25 @ 09:05:56 Sessions 3 Manual Loads 0 Difficulty Rogue Special Mode None Game No. 68 Rogue 68 Adventurer 0 Explorer 0 Win Type - Total 0 Types 0/0/0/0/0/0/0/0/0/0 Lore% 22 Gallery% 33 Achievement% 26 Wizard Run 0 Options --------- Layout 0 ASCII 1 Keyboard 0 Movement Numpad Keybinds 0 Fullscreen 2 Font 18/SmallcapsGlow Map View 76x50 Zoom Use 0% Tactical HUD 1 Map Filters NONE Filters NONE Steam 1 RUN: d16508d2-6294-46da-9d19-83c6ff7f9965